bitfinex/quotes_BTCUSD_20230109
["timestamp","ask_amount","ask_price","bid_price","bid_amount"]
[1673306884606,2.68640298,17183.0,17182.0,0.00891148]
[1673306885344,2.68806356,17183.0,17182.0,0.00891148]
[1673306885852,2.34071363,17183.0,17182.0,0.00891148]
[1673306890558,2.33571363,17183.0,17182.0,0.00891148]
[1673306894780,2.68305288,17183.0,17182.0,0.00891148]
[1673306895028,2.33571363,17183.0,17182.0,0.00891148]
[1673306895281,2.68305326,17183.0,17182.0,0.00891148]
[1673306897268,2.33571363,17183.0,17182.0,0.00891148]
[1673306898768,2.68304946,17183.0,17182.0,0.00891148]
[1673306905950,2.32086546,17183.0,17182.0,0.00891148]
[1673306906203,2.68304946,17183.0,17182.0,0.00891148]
[1673306906445,2.33571363,17183.0,17182.0,0.00891148]
[1673306906955,1.97352963,17183.0,17182.0,0.00891148]
[1673306907419,2.33571363,17183.0,17182.0,0.00891148]
[1673306910579,2.33571363,17183.0,17182.0,0.00879369]
[1673306911172,2.33405305,17183.0,17182.0,0.00879369]
[1673306911419,2.31923477,17183.0,17182.0,0.00879369]
[1673306911928,1.45014325,17183.0,17182.0,0.00879369]
[1673306914029,1.44914325,17183.0,17182.0,0.00879369]
[1673306915019,1.45080383,17183.0,17182.0,0.00879369]
[1673306915551,1.44914325,17183.0,17182.0,0.00879369]
[1673306916318,2.31974896,17183.0,17182.0,0.00879369]
[1673306916574,2.68193296,17183.0,17182.0,0.00879369]
[1673306917083,2.31974896,17183.0,17182.0,0.00879369]
[1673306917603,1.44914325,17183.0,17182.0,0.00879369]
[1673306918109,1.44980383,17183.0,17182.0,0.00879369]
[1673306918367,2.31875405,17183.0,17182.0,0.00879369]
[1673306918707,1.97138833,17183.0,17182.0,0.00879369]
[1673306918922,2.33357233,17183.0,17182.0,0.00879369]
[1673306919146,1.97138833,17183.0,17182.0,0.00879369]
[1673306920159,2.33357233,17183.0,17182.0,0.00879369]
[1673306920684,1.96972775,17183.0,17182.0,0.00879369]
[1673306920949,1.96872775,17183.0,17182.0,0.00879369]
[1673306921482,2.33091175,17183.0,17182.0,0.00879369]
[1673306921744,1.96872775,17183.0,17182.0,0.00879369]
[1673306923520,2.33091175,17183.0,17182.0,0.00879369]
[1673306924026,1.96872775,17183.0,17182.0,0.00879369]
[1673306924278,2.33257233,17183.0,17182.0,0.00879369]
[1673306926433,1.97038833,17183.0,17182.0,0.00879369]
[1673306926722,1.96872775,17183.0,17182.0,0.00879369]
[1673306927230,2.33257233,17183.0,17182.0,0.00879369]
[1673306927486,1.96872775,17183.0,17182.0,0.00879369]
[1673306928025,2.33091175,17183.0,17182.0,0.00879369]
[1673306928273,2.33257233,17183.0,17182.0,0.00879369]
[1673306928516,1.97038833,17183.0,17182.0,0.00879369]
[1673306929829,2.31785902,17183.0,17182.0,0.00879369]
[1673306930083,2.31783488,17183.0,17182.0,0.00879369]
[1673306930353,2.31783474,17183.0,17182.0,0.00879369]
[1673306931351,2.33254805,17183.0,17182.0,0.00879369]
[1673306931618,2.77503649,17183.0,17182.0,0.00879369]
[1673306931863,2.93091352,17183.0,17182.0,0.00879369]
[1673306932617,2.95028354,17183.0,17182.0,0.00879369]
[1673306932869,2.58809954,17183.0,17182.0,0.00879369]
[1673306933371,2.95028354,17183.0,17182.0,0.00879369]
[1673306934012,2.36831354,17183.0,17182.0,0.00879369]
[1673306934673,2.00612954,17183.0,17182.0,0.00879369]
[1673306935202,2.36831354,17183.0,17182.0,0.00879369]
[1673306936476,1.9258251,17183.0,17182.0,0.00879369]
[1673306938188,2.9419925,17183.0,17182.0,0.00879369]
[1673306939167,3.53225354,17183.0,17182.0,0.00879369]
[1673306939409,4.05349061,17183.0,17182.0,0.00879369]
[1673306940153,4.05298061,17183.0,17182.0,0.00879369]
[1673306942171,3.53174354,17183.0,17182.0,0.00879369]
[1673306942417,4.05298061,17183.0,17182.0,0.00879369]
[1673306942659,4.63495061,17183.0,17182.0,0.00879369]
[1673306943898,4.63495061,17183.0,17179.0,0.00971993]
[1673306943899,0.1256687,17181.0,17179.0,0.00971993]
[1673306944151,0.79614623,17180.0,17179.0,0.00971993]
[1673306944400,0.63396223,17180.0,17179.0,0.00971993]
[1673306945420,0.63396223,17180.0,17179.0,0.07171993]
[1673306946187,0.37358489,17180.0,17179.0,0.07171993]
[1673306946968,0.63396223,17180.0,17179.0,0.07171993]
[1673306947457,0.63562281,17180.0,17179.0,0.07171993]
[1673306947707,0.63396223,17180.0,17179.0,0.07171993]
[1673306950518,0.63562281,17180.0,17179.0,0.07171993]
[1673306950765,0.37358489,17180.0,17179.0,0.59121078]
[1673306952554,0.37358489,17180.0,17179.0,0.07171993]
[1673306952555,0.37524547,17180.0,17179.0,0.07171993]
[1673306952851,0.65355713,17180.0,17179.0,0.07171993]
[1673306953092,1.01574113,17180.0,17179.0,0.07171993]
[1673306953338,0.65355713,17180.0,17179.0,0.07171993]
[1673306953840,1.23562913,17180.0,17179.0,0.07171993]
[1673306954618,1.67811757,17180.0,17179.0,0.07171993]
[1673306954871,2.43377446,17180.0,17179.0,0.07171993]
[1673306955122,2.79595846,17180.0,17179.0,0.07171993]
[1673306956405,2.62229152,17180.0,17179.0,0.07171993]
[1673306956652,1.2338865,17180.0,17179.0,0.07171993]
[1673306960278,1.23554708,17180.0,17179.0,0.07171993]
[1673306961561,1.81761908,17180.0,17179.0,0.07171993]
[1673306961785,2.17980308,17180.0,17179.0,0.07171993]
[1673306963058,2.62229152,17180.0,17179.0,0.07171993]
[1673306963324,2.79595846,17180.0,17179.0,0.07171993]
[1673306963583,2.96946969,17180.0,17179.0,0.07171993]
[1673306963835,2.79595846,17180.0,17179.0,0.07171993]
[1673306964548,2.78595846,17180.0,17179.0,0.07171993]
[1673306968670,2.78585328,17180.0,17179.0,0.07171993]
[1673306969188,2.34170426,17180.0,17179.0,0.07171993]
[1673306969462,1.97952026,17180.0,17179.0,0.07171993]
[1673306969709,2.34170426,17180.0,17179.0,0.07171993]
[1673306969952,1.92952026,17180.0,17179.0,0.07171993]
[1673306970202,2.29170426,17180.0,17179.0,0.07171993]
[1673306970449,1.92952026,17180.0,17179.0,0.07171993]
[1673306970698,2.29170426,17180.0,17179.0,0.07171993]
[1673306970947,1.92952026,17180.0,17179.0,0.07171993]
[1673306971197,2.29170426,17180.0,17179.0,0.07171993]
[1673306971451,1.92952026,17180.0,17179.0,0.07171993]
[1673306971698,2.29170426,17180.0,17179.0,0.07171993]
[1673306972196,2.46539433,17180.0,17179.0,0.07171993]
[1673306972451,2.10321033,17180.0,17179.0,0.07171993]
[1673306972666,2.90783519,17180.0,17179.0,0.07171993]
[1673306973209,3.37659995,17180.0,17179.0,0.07171993]
[1673306973728,3.02943017,17180.0,17179.0,0.07171993]
[1673306973987,3.46468153,17180.0,17179.0,0.07171993]
[1673306975575,4.04675353,17180.0,17179.0,0.07171993]
[1673306975792,4.04844888,17180.0,17179.0,0.07171993]
[1673306976122,4.56968595,17180.0,17179.0,0.07171993]
[1673306976376,4.55005628,17180.0,17179.0,0.07171993]
[1673306976632,0.11341694,17178.0,17177.0,0.00980778]
[1673306976888,3.44201881,17178.0,17177.0,0.00980778]
[1673306977135,3.44201881,17178.0,17177.0,0.00480778]
[1673306977136,3.91078357,17178.0,17177.0,0.00480778]
[1673306977662,3.54102622,17178.0,17177.0,0.00480778]
[1673306977917,3.90321199,17178.0,17177.0,0.00480778]
[1673306978178,3.90920988,17178.0,17177.0,0.12180778]
[1673306978464,3.36473029,17178.0,17177.0,0.12180778]
[1673306978692,3.46665779,17178.0,17177.0,0.12180778]
[1673306978939,3.10447379,17178.0,17177.0,0.12180778]
[1673306979187,3.46065779,17178.0,17177.0,0.00480778]
[1673306979703,3.09847379,17178.0,17177.0,0.00480778]
[1673306979993,3.72091358,17178.0,17177.0,0.00480778]
[1673306980218,3.46065779,17178.0,17177.0,0.00480778]
[1673306980461,2.92658807,17178.0,17177.0,0.00480778]
[1673306980711,3.36577207,17178.0,17177.0,0.01380778]
[1673306980956,3.72255014,17178.0,17177.0,0.00480778]
[1673306981215,3.79955014,17178.0,17177.0,0.01380778]
[1673306981464,3.53931837,17178.0,17177.0,0.01380778]
[1673306982231,3.36573337,17178.0,17177.0,0.01380778]
[1673306984021,4.00189759,17178.0,17177.0,0.01380778]
[1673306984279,3.53931837,17178.0,17177.0,0.01380778]
[1673306984532,4.00183821,17178.0,17177.0,0.01380778]
[1673306984787,3.53931837,17178.0,17177.0,0.01380778]
[1673306985067,3.79947627,17178.0,17177.0,0.01380778]
[1673306985580,3.53931837,17178.0,17177.0,0.01380778]
[1673306985801,4.00184451,17178.0,17177.0,0.01380778]
[1673306986349,3.53931837,17178.0,17177.0,0.01380778]
[1673306986853,4.0022195,17178.0,17177.0,0.01380778]
[1673306987870,4.1022195,17178.0,17177.0,0.01380778]
[1673306989441,3.31563548,17178.0,17177.0,0.01380778]
[1673306989713,3.31563299,17178.0,17177.0,0.01380778]
[1673306989987,2.88185492,17178.0,17177.0,0.01380778]
[1673306992977,2.8835155,17178.0,17177.0,0.01380778]
[1673306994041,2.3013765,17178.0,17177.0,0.01380778]
[1673307001487,1.7192375,17178.0,17177.0,0.01380778]
[1673307001745,1.27655216,17178.0,17177.0,0.01380778]
[1673307002957,1.30053673,17178.0,17177.0,0.01380778]
[1673307003212,1.47407735,17178.0,17177.0,0.01380778]
[1673307003455,1.30053673,17178.0,17177.0,0.01380778]
[1673307003693,1.30053673,17178.0,17177.0,0.01153112]
[1673307005631,1.73973707,17178.0,17177.0,0.01153112]
[1673307005866,1.93973707,17178.0,17177.0,0.01153112]
[1673307006366,2.11340094,17178.0,17177.0,0.01153112]
[1673307006869,1.94000229,17178.0,17177.0,0.01153112]
[1673307008377,2.11340094,17178.0,17177.0,0.01153112]
[1673307008872,1.94005459,17178.0,17177.0,0.01153112]
[1673307009364,1.38926173,17178.0,17177.0,0.01153112]
[1673307009611,0.85368041,17178.0,17177.0,0.01153112]
[1673307009856,1.20070287,17178.0,17177.0,0.01153112]
[1673307010650,1.02707773,17178.0,17177.0,0.01153112]
[1673307011150,1.38926173,17178.0,17177.0,0.01153112]
[1673307011911,1.56260808,17178.0,17177.0,0.01153112]
[1673307012171,2.02657875,17178.0,17177.0,0.01153112]
[1673307012679,2.89585675,17178.0,17177.0,0.01153112]
[1673307012929,2.89751733,17178.0,17177.0,0.01153112]
[1673307013145,3.33671767,17178.0,17177.0,0.01153112]
[1673307013396,2.98969521,17178.0,17177.0,0.01153112]
[1673307014951,3.57183421,17178.0,17177.0,0.01153112]
[1673307015808,2.98969521,17178.0,17177.0,0.01153112]
[1673307017818,2.55591714,17178.0,17177.0,0.01153112]
[1673307018352,2.9902903,17178.0,17177.0,0.01153112]
[1673307019080,2.55591714,17178.0,17177.0,0.01153112]
[1673307019809,3.13805614,17178.0,17177.0,0.01153112]
[1673307020302,2.53077972,17178.0,17177.0,1.27921653]
[1673307020560,1.37134129,17178.0,17177.0,1.27921653]
[1673307020805,1.00915729,17178.0,17177.0,1.27921653]
[1673307021053,0.80915729,17178.0,17177.0,1.27921653]
[1673307021551,0.98291712,17178.0,17177.0,1.27921653]
[1673307021812,0.63538985,17178.0,17177.0,1.27371653]
[1673307023827,0.63538985,17178.0,17177.0,1.85588953]
[1673307024084,0.3747444,17178.0,17177.0,1.85588953]
[1673307024335,0.20098457,17178.0,17177.0,1.85588953]
[1673307024858,0.20098457,17178.0,17177.0,3.02023553]
[1673307025069,0.20098457,17178.0,17177.0,3.38241953]
[1673307030257,0.20098457,17178.0,17177.0,3.02023553]
[1673307030501,0.20098457,17178.0,17177.0,3.38241953]
[1673307031506,0.20098457,17178.0,17177.0,3.02023553]
[1673307034521,0.20264515,17178.0,17177.0,3.02023553]
[1673307034757,0.20098457,17178.0,17177.0,3.02023553]
[1673307035012,0.20098457,17178.0,17177.0,2.43806253]
[1673307042271,0.10768457,17178.0,17177.0,2.43806253]
[1673307042775,0.10934515,17178.0,17177.0,2.43806253]
[1673307043027,0.10768457,17178.0,17177.0,2.43806253]
[1673307045396,0.10934515,17178.0,17177.0,2.43806253]
[1673307045649,0.10768457,17178.0,17177.0,2.43806253]
[1673307045899,0.10768457,17178.0,17177.0,1.83806253]
[1673307046418,0.12679274,17178.0,17177.0,1.83806253]
[1673307046672,0.30055257,17178.0,17177.0,1.83806253]
[1673307046918,0.29889199,17178.0,17177.0,1.83806253]
[1673307048205,0.12513216,17178.0,17177.0,1.83806253]
[1673307048710,0.29889199,17178.0,17177.0,1.83806253]
[1673307050776,0.30055257,17178.0,17177.0,1.83806253]
[1673307051023,0.29889199,17178.0,17177.0,1.83806253]
[1673307051794,0.30055257,17178.0,17177.0,1.83806253]
[1673307052057,0.29889199,17178.0,17177.0,1.83806253]
[1673307052835,0.30055257,17178.0,17177.0,1.25588953]
[1673307053318,0.29889199,17178.0,17177.0,1.25588953]
[1673307055357,0.2814444,17178.0,17177.0,1.25588953]
[1673307059124,0.54208985,17178.0,17177.0,1.25588953]
[1673307059401,0.54375043,17178.0,17177.0,1.25588953]
[1673307059668,0.54208985,17178.0,17177.0,1.25588953]
[1673307061392,0.54208985,17178.0,17177.0,1.83806253]
[1673307062372,0.2814444,17178.0,17177.0,1.83806253]
[1673307062897,0.54208985,17178.0,17177.0,1.83806253]
[1673307063144,0.2814444,17178.0,17177.0,1.83806253]
[1673307063403,0.10768457,17178.0,17177.0,1.83806253]
[1673307063899,0.2814444,17178.0,17177.0,1.83806253]
[1673307064397,0.10768457,17178.0,17177.0,1.83806253]
[1673307064656,0.2814444,17178.0,17177.0,1.83806253]
[1673307065157,0.10768457,17178.0,17177.0,1.83806253]
[1673307065411,0.2814444,17178.0,17177.0,1.83806253]
[1673307065660,0.10768457,17178.0,17177.0,1.83806253]
[1673307066166,0.2814444,17178.0,17177.0,1.83806253]
[1673307066679,0.28310498,17178.0,17177.0,1.83806253]
[1673307066953,0.2814444,17178.0,17177.0,1.83806253]
[1673307067758,0.10768457,17178.0,17177.0,1.83806253]
[1673307068759,0.2814444,17178.0,17177.0,1.83806253]
[1673307069220,0.10768457,17178.0,17177.0,1.83806253]
[1673307072119,0.10768457,17178.0,17177.0,2.37404655]
[1673307074168,0.10768457,17178.0,17177.0,2.95621955]
[1673307077443,0.10768457,17178.0,17177.0,3.02947074]
[1673307078208,0.10768457,17178.0,17177.0,2.63474658]
[1673307078467,0.10768457,17178.0,17177.0,2.37404655]
[1673307079042,0.10768457,17178.0,17177.0,3.23474658]
[1673307079995,0.10768457,17178.0,17177.0,3.62939361]
[1673307080277,0.10768457,17178.0,17177.0,3.23474658]
[1673307080498,0.10768457,17178.0,17177.0,2.97404655]
[1673307081253,0.10768457,17178.0,17177.0,3.55621955]
[1673307082433,0.10768457,17178.0,17177.0,3.85621955]
[1673307083210,0.10768457,17178.0,17177.0,3.55621955]
[1673307084210,0.10768457,17178.0,17177.0,3.38241953]
[1673307085979,0.10768457,17178.0,17177.0,3.55621955]
[1673307089077,0.10768457,17178.0,17177.0,3.85621955]
[1673307090379,0.10768457,17178.0,17177.0,4.11691958]
[1673307090640,0.10768457,17178.0,17177.0,3.85621955]
[1673307090864,0.10768457,17178.0,17177.0,4.11691958]
[1673307091874,0.10768457,17178.0,17177.0,3.85621955]
[1673307093155,0.10768457,17178.0,17177.0,3.55621955]
[1673307093391,0.10768457,17178.0,17177.0,3.55121955]
[1673307095679,0.10768457,17178.0,17177.0,3.85121955]
[1673307096454,0.10768457,17178.0,17177.0,4.11191958]
[1673307096977,0.10768457,17178.0,17177.0,3.81191958]
[1673307098449,0.10768457,17178.0,17177.0,4.20555463]
[1673307098946,0.10768457,17178.0,17177.0,4.20555529]
[1673307100726,0.10768457,17178.0,17177.0,4.50555529]
[1673307102274,0.10768457,17178.0,17177.0,4.20555529]
[1673307102535,0.10768457,17178.0,17177.0,4.50555529]
[1673307103016,0.10768457,17178.0,17177.0,3.60555529]
[1673307103554,0.10768457,17178.0,17177.0,3.21191958]
[1673307104306,0.10768457,17178.0,17177.0,3.60559234]
[1673307104560,0.10768457,17178.0,17177.0,3.60559251]
[1673307104804,0.10768457,17178.0,17177.0,3.60559211]
[1673307105304,0.10768457,17178.0,17177.0,3.90559211]
[1673307105561,0.10768457,17178.0,17177.0,4.27024078]
[1673307106060,0.10768457,17178.0,17177.0,4.70566423]
[1673307106328,0.10768457,17178.0,17177.0,4.70572051]
[1673307106591,0.10768457,17178.0,17177.0,4.77872051]
[1673307106592,0.10868457,17178.0,17177.0,4.77872051]
[1673307106845,0.10868457,17178.0,17177.0,5.11693308]
[1673307107098,0.10868457,17178.0,17177.0,5.37872017]
[1673307107357,0.10868457,17178.0,17177.0,5.37872033]
[1673307107578,0.10768457,17178.0,17177.0,4.87029726]
[1673307107824,0.10768457,17178.0,17177.0,4.93929726]
[1673307108065,0.10768457,17178.0,17177.0,5.37474083]
[1673307108312,0.10768457,17178.0,17177.0,4.93931738]
[1673307109602,0.10768457,17178.0,17177.0,5.37474083]
[1673307109822,0.10768457,17178.0,17177.0,5.18394083]
[1673307110037,0.10768457,17178.0,17177.0,4.74851738]
[1673307110295,0.10768457,17178.0,17177.0,4.92213308]
[1673307110790,0.10768457,17178.0,17177.0,4.74853953]
[1673307112082,0.10768457,17178.0,17177.0,5.18396298]
[1673307112297,0.10768457,17178.0,17177.0,4.74853953]
[1673307112600,0.10768457,17178.0,17177.0,5.18396298]
[1673307112869,0.10768457,17178.0,17177.0,4.74853953]
[1673307113084,0.10768457,17178.0,17177.0,4.14853953]
[1673307113651,0.10768457,17178.0,17177.0,3.84853953]
[1673307113872,0.10768457,17178.0,17177.0,3.18085412]
[1673307114431,0.12354622,17178.0,17177.0,3.18085412]
[1673307114649,0.10768457,17178.0,17177.0,3.18085412]
[1673307115418,0.10768457,17178.0,17177.0,3.48085412]
[1673307116165,0.10768457,17178.0,17177.0,3.18085412]
[1673307116414,0.10768457,17178.0,17177.0,3.48085412]
[1673307116681,0.10760246,17178.0,17177.0,3.48085412]
[1673307118015,0.10760246,17178.0,17177.0,4.08273769]
[1673307118847,0.10760246,17178.0,17177.0,3.78273769]
[1673307119635,0.10760246,17178.0,17177.0,4.08273769]
[1673307120674,0.10760246,17178.0,17177.0,3.78273769]
[1673307120955,0.10760246,17178.0,17177.0,4.08273769]
[1673307121704,0.10760246,17178.0,17177.0,3.9573289]
[1673307121989,0.10760246,17178.0,17177.0,3.60968021]
[1673307122265,0.10760246,17178.0,17177.0,3.21600768]
[1673307122523,0.10760246,17178.0,17177.0,2.95417778]
[1673307122773,0.10760246,17178.0,17177.0,2.37200478]
[1673307123786,0.10760246,17178.0,17177.0,2.19741357]
[1673307124034,0.10760246,17178.0,17177.0,2.37200478]
[1673307124278,0.10760246,17178.0,17177.0,2.19741357]
[1673307126066,0.10760246,17178.0,17177.0,1.83522957]
[1673307126318,0.10760246,17178.0,17177.0,2.19741357]
[1673307126848,0.10760246,17178.0,17177.0,1.03306757]
[1673307127124,0.10760246,17178.0,17177.0,1.83522957]
[1673307127397,0.10760246,17178.0,17177.0,2.19741357]
[1673307127889,0.10760246,17178.0,17177.0,2.37200478]
[1673307130117,0.10760246,17178.0,17177.0,2.95417778]
[1673307130650,0.10760246,17178.0,17177.0,2.37200478]
[1673307130882,0.10760246,17178.0,17177.0,2.95417778]
[1673307135898,0.10760246,17178.0,17177.0,3.21600768]
[1673307136442,0.10760246,17178.0,17177.0,2.95417778]
[1673307136646,0.10760246,17178.0,17177.0,3.21600768]
[1673307137947,0.10760246,17178.0,17177.0,2.95417778]
[1673307138187,0.10760246,17178.0,17177.0,3.21600768]
[1673307138907,0.10760246,17178.0,17177.0,3.60560316]
[1673307141400,0.10760246,17178.0,17177.0,2.95417778]
[1673307146255,0.10760246,17178.0,17177.0,3.21600768]
[1673307147448,0.10760246,17178.0,17177.0,2.95417778]
[1673307148214,0.10760246,17178.0,17177.0,3.21600768]
[1673307150726,0.10760246,17178.0,17177.0,3.60557957]
[1673307153166,0.10760246,17178.0,17177.0,4.07863705]
[1673307153412,0.10760246,17178.0,17177.0,3.77863705]
[1673307156276,0.10760246,17178.0,17177.0,4.07863705]
[1673307156521,0.10760246,17178.0,17177.0,3.77863705]
[1673307156815,0.10760246,17178.0,17177.0,4.07863705]
[1673307158018,0.10760246,17178.0,17177.0,3.6055433]
[1673307160456,0.10760246,17178.0,17177.0,3.60532736]
[1673307163184,0.10760246,17178.0,17177.0,3.95297605]
[1673307163557,0.10760246,17178.0,17177.0,3.77842111]
[1673307163796,0.10760246,17178.0,17177.0,3.60534131]
[1673307165107,0.10760246,17178.0,17177.0,3.95299]
[1673307165329,0.10760246,17178.0,17177.0,3.60534131]
[1673307166207,0.10760246,17178.0,17177.0,3.95302122]
[1673307166450,0.10760246,17178.0,17177.0,3.60537253]
[1673307167207,0.10760246,17178.0,17177.0,3.77842111]
[1673307169950,0.10760246,17178.0,17177.0,3.6053749]
[1673307171488,0.10760246,17178.0,17177.0,3.95302359]
[1673307172750,0.10760246,17178.0,17177.0,3.77842111]
[1673307173261,0.10760246,17178.0,17177.0,3.95303086]
[1673307173519,0.10760246,17178.0,17177.0,3.77842111]
[1673307180648,0.10760246,17178.0,17177.0,3.60538782]
[1673307181899,0.10760246,17178.0,17177.0,3.77842111]
[1673307184016,0.10760246,17178.0,17177.0,4.25201466]
[1673307184980,0.10760246,17178.0,17177.0,5.25201466]
[1673307186252,0.10760246,17178.0,17177.0,5.52545515]
[1673307186253,0.10750926,17178.0,17177.0,5.52545515]
[1673307186524,0.10750926,17178.0,17177.0,5.52535697]
[1673307186772,0.10750926,17178.0,17177.0,5.52626681]
[1673307187028,0.10750926,17178.0,17177.0,5.08993352]
[1673307189287,0.10750926,17178.0,17177.0,5.52616344]
[1673307189543,0.10750926,17178.0,17177.0,5.08993352]
[1673307190038,0.01724054,17178.0,17177.0,6.1632815]
[1673307190581,0.04026529,17180.0,17177.0,6.1632815]
[1673307190831,0.04026529,17180.0,17179.0,1.79946828]
[1673307191091,0.04026529,17180.0,17179.0,5.22648367]
[1673307191625,0.04026529,17180.0,17179.0,5.22638828]
[1673307192606,0.04726529,17180.0,17179.0,4.79928023]
[1673307192838,0.04726529,17180.0,17179.0,5.05391582]
[1673307193101,0.04726529,17180.0,17179.0,4.62481112]
[1673307193740,0.04726529,17180.0,17179.0,4.97365014]
[1673307193944,0.04026529,17180.0,17179.0,4.62281112]
[1673307195114,0.04026529,17180.0,17179.0,4.62287112]
[1673307195879,0.04026529,17180.0,17179.0,5.22639894]
[1673307196384,0.04026529,17180.0,17179.0,4.79734023]
[1673307196883,0.04026529,17180.0,17179.0,5.22639852]
[1673307197100,0.04192587,17180.0,17179.0,3.29734023]
[1673307197346,0.04192587,17180.0,17179.0,2.28280702]
[1673307197347,0.04026529,17180.0,17179.0,2.28280702]
[1673307198559,0.04026529,17180.0,17179.0,2.58280702]
[1673307199790,0.04026529,17180.0,17179.0,2.408516]
[1673307201424,0.04026529,17180.0,17179.0,2.58274702]
[1673307202350,0.04026529,17180.0,17179.0,2.408456]
[1673307203396,0.04026529,17180.0,17179.0,2.58274702]
[1673307205680,0.04026529,17180.0,17179.0,2.108456]
[1673307207689,0.04026529,17180.0,17179.0,2.408456]
[1673307207958,0.04026529,17180.0,17179.0,2.58274702]
[1673307212645,0.04016032,17180.0,17179.0,2.58274702]
[1673307215009,0.04016032,17180.0,17179.0,2.84437628]
[1673307215246,0.04016032,17180.0,17179.0,3.21715586]
[1673307215489,0.04016032,17180.0,17179.0,2.84437628]
[1673307216228,0.04016032,17180.0,17179.0,3.2171946]
[1673307216980,0.04016032,17180.0,17179.0,2.84437628]
[1673307218202,0.04016032,17180.0,17179.0,3.21869381]
[1673307218454,0.04016032,17180.0,17179.0,3.21869387]
[1673307220253,0.04016032,17180.0,17179.0,3.39324187]
[1673307220505,0.02574871,17180.0,17179.0,3.39324187]
[1673307223538,0.02574871,17180.0,17179.0,3.56766138]
[1673307227070,0.02574871,17180.0,17179.0,3.21882236]
[1673307228296,0.02574871,17180.0,17179.0,3.56789077]
[1673307231305,0.02574871,17180.0,17179.0,3.56790163]
[1673307231554,0.02574871,17180.0,17179.0,3.21882236]
[1673307232299,0.02574871,17180.0,17179.0,3.56790311]
[1673307235740,0.02574871,17180.0,17179.0,3.56290311]
[1673307235988,0.02574871,17180.0,17179.0,3.21382236]
[1673307236498,0.02574871,17180.0,17179.0,3.56289498]
[1673307236746,0.02574871,17180.0,17179.0,3.21382236]
[1673307238843,0.02574871,17180.0,17179.0,2.77777359]
[1673307239360,0.00511301,17180.0,17179.0,4.28708845]
[1673307239365,0.00511301,17180.0,17179.0,4.36062126]
[1673307239649,0.00511301,17180.0,17179.0,4.90211967]
[1673307239897,1.301e-05,17180.0,17179.0,4.90211967]
[1673307240164,6e-05,17183.0,17180.0,0.20006]
[1673307240421,6e-05,17183.0,17182.0,1.43618713]
[1673307240674,6e-05,17183.0,17182.0,4.56254674]
[1673307241173,6e-05,17183.0,17182.0,4.38808248]
[1673307241413,0.00828615,17184.0,17182.0,4.56256858]
[1673307241677,0.00828615,17184.0,17183.0,0.383322]
[1673307241923,0.00828615,17184.0,17183.0,2.1037181]
[1673307242909,0.00828615,17184.0,17183.0,1.929232]
[1673307243415,0.00828615,17184.0,17183.0,2.229232]
[1673307243659,0.00828615,17184.0,17183.0,2.4037181]
[1673307244412,0.00828615,17184.0,17183.0,2.4037781]
[1673307244920,0.00828615,17184.0,17183.0,2.66550097]
[1673307245180,0.00828615,17184.0,17183.0,2.4037781]
[1673307245437,0.00828615,17184.0,17183.0,2.66550097]
[1673307245682,0.00828615,17184.0,17183.0,3.03596868]
[1673307247242,0.00828615,17184.0,17183.0,3.03549889]
[1673307247482,0.00828615,17184.0,17183.0,3.03648239]
[1673307247726,0.00828615,17184.0,17183.0,3.47291001]
[1673307247976,0.00828615,17184.0,17183.0,3.10548239]
[1673307248224,0.00828615,17184.0,17183.0,3.45443141]
[1673307248469,0.00828615,17184.0,17183.0,3.89085903]
[1673307248716,0.00828615,17184.0,17183.0,3.8905655]
[1673307248975,0.00828615,17184.0,17183.0,3.71637293]
[1673307249276,0.00828615,17184.0,17183.0,3.10510956]
[1673307249505,0.00828615,17184.0,17183.0,3.54147718]
[1673307250281,0.00828615,17184.0,17183.0,3.71631293]
[1673307251089,0.00828615,17184.0,17183.0,3.54140089]
[1673307252225,0.00828615,17184.0,17183.0,3.10497327]
[1673307252748,0.00828615,17184.0,17183.0,2.73497535]
[1673307253275,0.00828615,17184.0,17183.0,2.47325248]
[1673307257268,0.00828615,17184.0,17183.0,2.2992155]
[1673307258822,0.00828615,17184.0,17183.0,2.47325248]
[1673307262087,0.00817816,17184.0,17183.0,2.47325248]
[1673307262333,0.00817816,17184.0,17183.0,3.04433585]
[1673307266097,0.00817816,17184.0,17183.0,3.04693685]
[1673307271061,0.00817816,17184.0,17183.0,2.57289987]
[1673307272368,0.00817816,17184.0,17183.0,2.74663487]
[1673307272633,0.00817816,17184.0,17183.0,2.38957787]
[1673307273455,0.00817816,17184.0,17183.0,2.75167987]
[1673307275827,0.00817816,17184.0,17183.0,3.22571685]
[1673307276892,0.00817816,17184.0,17183.0,3.48743972]
[1673307277145,0.00817816,17184.0,17183.0,3.86680827]
[1673307277658,0.00817816,17184.0,17183.0,3.48743972]
[1673307278933,0.00817816,17184.0,17183.0,3.86699313]
[1673307281262,0.00817816,17184.0,17183.0,3.56699313]
[1673307281760,0.00817816,17184.0,17183.0,3.86699313]
[1673307282550,0.00817816,17184.0,17183.0,3.56699313]
[1673307284336,0.00817816,17184.0,17183.0,3.86699313]
[1673307284587,0.00817816,17184.0,17183.0,4.21594215]
[1673307285340,0.00817816,17184.0,17183.0,4.04190517]
[1673307289267,0.0080738,17184.0,17183.0,5.21636943]
[1673307290575,0.03198748,17184.0,17183.0,5.21636943]
[1673307292183,0.03198748,17184.0,17183.0,5.46160857]
[1673307292954,0.03198748,17184.0,17183.0,6.00970296]
[1673307293209,0.03198748,17184.0,17183.0,5.46160857]
[1673307293465,0.00562549,17184.0,17183.0,6.25240857]
[1673307293801,0.00562549,17184.0,17183.0,6.15277168]
[1673307294248,0.00562549,17184.0,17183.0,6.67188049]
[1673307294780,0.00562549,17184.0,17183.0,7.27188049]
[1673307295042,0.00562549,17184.0,17183.0,5.60043401]
[1673307295563,0.00562549,17184.0,17183.0,6.14611306]
[1673307295816,0.00562549,17184.0,17183.0,6.66953762]
[1673307296553,0.00562549,17184.0,17183.0,6.14611306]
[1673307297056,0.00562549,17184.0,17183.0,5.60043401]
[1673307301697,0.00562549,17184.0,17183.0,6.66698279]
[1673307303466,0.00562549,17184.0,17183.0,6.66439479]
[1673307304744,0.00562549,17184.0,17183.0,6.59539479]
[1673307304993,0.00562549,17184.0,17183.0,6.73339479]
[1673307305245,0.00562549,17184.0,17183.0,6.59539479]
[1673307305496,0.00562549,17184.0,17183.0,6.73539479]
[1673307308625,0.00562549,17184.0,17183.0,6.21197023]
[1673307309350,0.00562549,17184.0,17183.0,6.2093926]
[1673307310423,0.00562549,17184.0,17183.0,5.66536801]
[1673307311727,0.00562549,17184.0,17183.0,6.21108631]
[1673307312746,0.00562549,17184.0,17183.0,5.67386801]
[1673307313314,0.00562549,17184.0,17183.0,6.21242608]
[1673307313565,0.00115453,17184.0,17183.0,5.67386801]
[1673307317346,0.00115453,17184.0,17183.0,6.21133722]
[1673307317590,0.00115453,17184.0,17183.0,6.73476178]
[1673307319900,0.00115453,17184.0,17183.0,6.21133722]
[1673307320153,0.00115453,17184.0,17183.0,5.67386801]
[1673307320398,0.00115453,17184.0,17183.0,5.48306801]
[1673307321400,0.00115453,17184.0,17183.0,5.42816801]
[1673307322949,0.00115453,17184.0,17183.0,4.99174039]
[1673307323288,0.00115453,17184.0,17183.0,5.42739942]